Workbook

Sheet 一车间待保温工程量
A1: 一车间待保温工程量
A2: 名称 | B2: 规格 | C2: 数量 | D2: 单位 | E2: 单价 | F2: 合价 | G2: 材料 | H2: 厚度 | I2: 容重 | J2: 外皮 | M2: 外径 | N2: 外表温度 | O2: 最冷月环境温度 | P2: 理论厚度
A3: 自来水管 | B3: DN25 | C3: 170.5 | D3: m | G3: 岩棉 | H3: 50 | I3: 60-100 | J3: 0.45铝皮 | M3: 32 | N3: 20 | O3: -5 | P3: 13
A4: 自来水管弯头 | B4: DN25 | C4: =2+1+2+1+4+1+1+2+3+2+2+3+5+3+5 -> 37 | D4: 个 | G4: 岩棉 | H4: 50 | I4: 60-100 | J4: 0.45铝皮 | M4: 32 | N4: 20 | O4: -5 | P4: 13
A5: 自来水管阀门 | B5: DN25 | C5: =1+1+1 -> 3 | D5: 个 | G5: 岩棉 | H5: 50 | I5: 60-100 | J5: 0.45铝皮 | M5: 32 | N5: 20 | O5: -5 | P5: 13
A6: 自来水管法兰 | B6: DN25 | C6: =3+1+3+1+1+1+1 -> 11 | D6: 对 | G6: 岩棉 | H6: 50 | I6: 60-100 | J6: 0.45铝皮 | M6: 32 | N6: 20 | O6: -5 | P6: 13
A7: 蒸汽管 | B7: DN25 | C7: =3+0.6+6+2+1.5+2.7 -> 15.8 | D7: m | G7: 岩棉 | H7: 50 | I7: 60-100 | J7: 0.45铝皮 | M7: 32 | N7: 180 | O7: -5 | P7: 42
A8: 蒸汽管弯头 | B8: DN25 | C8: 5 | D8: 个 | G8: 岩棉 | H8: 50 | I8: 60-100 | J8: 0.45铝皮 | M8: 32 | N8: 180 | O8: -5 | P8: 42
A9: E2110换热器封头 | B9: Φ600mm | C9: 2 | D9: 个 | G9: 岩棉 | H9: 50 | I9: 60-100 | J9: 0.45铝皮 | M9: 600 | N9: 105 | O9: -5 | P9: 43
A10: E2110出口 | B10: DN50 | C10: =1.3+0.5 -> 1.8 | D10: m | G10: 岩棉 | H10: 50 | I10: 60-100 | J10: 0.45铝皮 | M10: 57 | N10: 105 | O10: -5 | P10: 43
A11: E2110出口弯头 | B11: DN50 | C11: 2 | D11: 个 | G11: 岩棉 | H11: 50 | I11: 60-100 | J11: 0.45铝皮 | M11: 57 | N11: 105 | O11: -5 | P11: 33
A12: E2110出口阀门 | B12: DN50 | C12: 2 | D12: 个 | G12: 岩棉 | H12: 50 | I12: 60-100 | J12: 0.45铝皮 | M12: 57 | N12: 105 | O12: -5 | P12: 33
A13: E2110出口 | B13: DN65 | C13: =0.2 -> 0.2 | D13: m | G13: 岩棉 | H13: 50 | I13: 60-100 | J13: 0.45铝皮 | M13: 76 | N13: 105 | O13: -5 | P13: 34
A14: E2110出口弯头 | B14: DN65 | C14: 2 | D14: 个 | G14: 岩棉 | H14: 50 | I14: 60-100 | J14: 0.45铝皮 | M14: 76 | N14: 105 | O14: -5 | P14: 34
A15: E2110出口法兰 | B15: DN65 | C15: 2 | D15: 对 | G15: 岩棉 | H15: 50 | I15: 60-100 | J15: 0.45铝皮 | M15: 76 | N15: 105 | O15: -5 | P15: 34
A16: E4101出口法兰 | B16: DN200 | C16: 2 | D16: 对 | G16: 岩棉 | H16: 50 | I16: 60-100 | J16: 0.45铝皮 | M16: 219 | N16: 110 | O16: -5 | P16: 42
A17: E4110出口法兰 | B17: DN150 | C17: 2 | D17: 对 | G17: 岩棉 | H17: 50 | I17: 60-100 | J17: 0.45铝皮 | M17: 159 | N17: 110 | O17: -5 | P17: 40
A18: E4114出口阀门 | B18: DN65 | C18: 1 | D18: 个 | G18: 岩棉 | H18: 50 | I18: 60-100 | J18: 0.45铝皮 | M18: 76 | N18: 110 | O18: -5 | P18: 36
A19: E4114出口法兰 | B19: DN65 | C19: 2 | D19: 对 | G19: 岩棉 | H19: 50 | I19: 60-100 | J19: 0.45铝皮 | M19: 76 | N19: 110 | O19: -5 | P19: 36
A20: E4114出口弯头 | B20: DN65 | C20: 2 | D20: 个 | G20: 岩棉 | H20: 50 | I20: 60-100 | J20: 0.45铝皮 | M20: 76 | N20: 110 | O20: -5 | P20: 36
A21: T4102法兰 | B21: Φ1500mm | C21: 1 | D21: 对 | G21: 岩棉 | H21: 50 | I21: 60-100 | J21: 0.45铝皮 | M21: 1500 | N21: 110 | O21: -5 | P21: 47
A22: V2110旁（蒸汽流量计） | B22: DN100 | C22: =0.3+1.2+0.4 -> 1.9 | D22: m | G22: 岩棉 | H22: 100 | I22: 60-100 | J22: 0.45铝皮 | M22: 108 | N22: 180 | O22: -5 | P22: 53
A23: V2110阀门 | B23: DN100 | C23: 1 | D23: 个 | G23: 岩棉 | H23: 100 | I23: 60-100 | J23: 0.45铝皮 | M23: 108 | N23: 180 | O23: -5 | P23: 53
A24: V2110出料拆除 | B24: DN65 | C24: 10.2 | D24: m | G24: 岩棉 | H24: 50 | I24: 60-100 | J24: 0.45铝皮 | M24: 76 | N24: 75 | O24: -5 | P24: 30
A25: V2110出料新增 | B25: DN65 | C25: 10.2 | D25: m | G25: 岩棉 | H25: 50 | I25: 60-100 | J25: 0.45铝皮 | M25: 76 | N25: 75 | O25: -5 | P25: 30
A26: V2110出料弯头 | B26: DN65 | C26: 2 | D26: 个 | G26: 岩棉 | H26: 50 | I26: 60-100 | J26: 0.45铝皮 | M26: 76 | N26: 75 | O26: -5 | P26: 30
A27: V2110分酸新增 | B27: DN65 | C27: 10.2 | D27: m | G27: 岩棉 | H27: 50 | I27: 60-100 | J27: 0.45铝皮 | M27: 76 | N27: 75 | O27: -5 | P27: 30
A28: V2110分酸拆除 | B28: DN65 | C28: 10.2 | D28: m | G28: 岩棉 | H28: 50 | I28: 60-100 | J28: 0.45铝皮 | M28: 76 | N28: 75 | O28: -5 | P28: 30
A29: V2110分酸弯头 | B29: DN65 | C29: 2 | D29: 个 | G29: 岩棉 | H29: 50 | I29: 60-100 | J29: 0.45铝皮 | M29: 76 | N29: 75 | O29: -5 | P29: 30
A30: E5308出口 | B30: DN50 | C30: =1.5+1.3+5+1.8 -> 9.6 | D30: m | G30: 岩棉 | H30: 50 | I30: 60-100 | J30: 0.45铝皮 | M30: 57 | N30: 80 | O30: -5 | P30: 30
A31: E5308出口弯头 | B31: DN50 | C31: =5 -> 5 | D31: 个 | G31: 岩棉 | H31: 50 | I31: 60-100 | J31: 0.45铝皮 | M31: 57 | N31: 80 | O31: -5 | P31: 30
A32: 16塔热水补水管 | B32: DN32 | C32: =5.1+7.5+5+4.4+4.5+12.1+7 -> 45.6 | D32: m | G32: 岩棉 | H32: 50 | I32: 60-100 | J32: 0.45铝皮 | M32: 38 | N32: 100 | O32: -5 | P32: 33
A33: 16塔热水补水管弯头 | B33: DN32 | C33: =2+2+1+1+2+4 -> 12 | D33: 个 | G33: 岩棉 | H33: 50 | I33: 60-100 | J33: 0.45铝皮 | M33: 38 | N33: 100 | O33: -5 | P33: 33
A34: 16塔热水补水管法兰 | B34: DN32 | C34: =1+1+3 -> 5 | D34: 对 | G34: 岩棉 | H34: 50 | I34: 60-100 | J34: 0.45铝皮 | M34: 38 | N34: 100 | O34: -5 | P34: 33
A35: 18塔热水补水管 | B35: DN32 | C35: =12.1+7 -> 19.1 | D35: m | G35: 岩棉 | H35: 50 | I35: 60-100 | J35: 0.45铝皮 | M35: 38 | N35: 100 | O35: -5 | P35: 33
A36: 18塔热水补水管弯头 | B36: DN32 | C36: =2+4 -> 6 | D36: 个 | G36: 岩棉 | H36: 50 | I36: 60-100 | J36: 0.45铝皮 | M36: 38 | N36: 100 | O36: -5 | P36: 33
A37: 一车间原料去二车间原料管修补 | B37: DN50 | C37: 6 | D37: m | G37: 岩棉 | H37: 50 | I37: 60-100 | J37: 0.45铝皮 | M37: 57 | N37: 100 | O37: -5 | P37: 37
A38: 一车间原料去二车间原料管法兰 | B38: DN50 | C38: 3 | D38: 对 | G38: 岩棉 | H38: 50 | I38: 60-100 | J38: 0.45铝皮 | M38: 57 | N38: 100 | O38: -5 | P38: 37
A39: 一车间原料去二车间原料管阀门 | B39: DN50 | C39: 1 | D39: 个 | G39: 岩棉 | H39: 50 | I39: 60-100 | J39: 0.45铝皮 | M39: 57 | N39: 100 | O39: -5 | P39: 37
A40: 16/18塔托盘阀门壳 | B40: DN80 | C40: 2 | D40: 个 | G40: 岩棉 | H40: 100 | I40: 60-100 | J40: 0.45铝皮 | M40: 89 | N40: 280 | O40: -5 | P40: 62
A41: 16/18塔托盘阀门壳 | B41: DN65 | C41: 12 | D41: 个 | G41: 岩棉 | H41: 100 | I41: 60-100 | J41: 0.45铝皮 | M41: 76 | N41: 280 | O41: -5 | P41: 60
A42: V3108进料管 | B42: DN65 | C42: =2.4+3.2+0.5 -> 6.1 | D42: m | G42: 岩棉 | H42: 50 | I42: 60-100 | J42: 0.45铝皮 | M42: 76 | N42: 70 | O42: -5 | P42: 28
A43: V3108进料管法兰 | B43: DN65 | C43: 2 | D43: 对 | G43: 岩棉 | H43: 50 | I43: 60-100 | J43: 0.45铝皮 | M43: 76 | N43: 70 | O43: -5 | P43: 28
A44: V3108进料管弯头 | B44: DN65 | C44: 4 | D44: 个 | G44: 岩棉 | H44: 50 | I44: 60-100 | J44: 0.45铝皮 | M44: 76 | N44: 70 | O44: -5 | P44: 28
A45: T6101排液阀门 | B45: DN100 | C45: 3 | D45: 个 | G45: 岩棉 | H45: 50 | I45: 60-100 | J45: 0.45铝皮 | M45: 108 | N45: 100 | O45: -5 | P45: 42
A46: T6101排液法兰 | B46: DN100 | C46: 1 | D46: 对 | G46: 岩棉 | H46: 50 | I46: 60-100 | J46: 0.45铝皮 | M46: 108 | N46: 100 | O46: -5 | P46: 42
A47: 自来水管 | B47: DN50 | C47: =17.7+6 -> 23.7 | D47: m | G47: 岩棉 | H47: 50 | I47: 60-100 | J47: 0.45铝皮 | M47: 57 | N47: 20 | O47: -5 | P47: 12
A48: 自来水管弯头 | B48: DN50 | C48: 5 | D48: 个 | G48: 岩棉 | H48: 50 | I48: 60-100 | J48: 0.45铝皮 | M48: 57 | N48: 20 | O48: -5 | P48: 12
A49: 自来水管阀门 | B49: DN50 | C49: 2 | D49: 个 | G49: 岩棉 | H49: 50 | I49: 60-100 | J49: 0.45铝皮 | M49: 57 | N49: 20 | O49: -5 | P49: 12
A50: 热水去循环水池管 | B50: DN40 | C50: =33+2.7+2+2.7+20+11.5+2.4+3.3+9.4+8.1+1.9+7.4+1.4+1.9 -> 107.7 | D50: m | G50: 岩棉 | H50: 50 | I50: 60-100 | J50: 0.45铝皮 | M50: 45 | N50: 100 | O50: -5 | P50: 34
A51: 热水去循环水池管弯头 | B51: DN40 | C51: =4+4+8+3+2+2+3 -> 26 | D51: 个 | G51: 岩棉 | H51: 50 | I51: 60-100 | J51: 0.45铝皮 | M51: 45 | N51: 100 | O51: -5 | P51: 34
A52: 热水去循环水池管 | B52: DN50 | C52: 3.3 | D52: m | G52: 岩棉 | H52: 50 | I52: 60-100 | J52: 0.45铝皮 | M52: 65 | N52: 100 | O52: -5 | P52: 37
A53: 热水去循环水池管弯头 | B53: DN50 | C53: 2 | D53: 个 | G53: 岩棉 | H53: 50 | I53: 60-100 | J53: 0.45铝皮 | M53: 65 | N53: 100 | O53: -5 | P53: 37
A54: 热水去循环水池管阀门 | B54: DN50 | C54: 1 | D54: 个 | G54: 岩棉 | H54: 50 | I54: 60-100 | J54: 0.45铝皮 | M54: 65 | N54: 100 | O54: -5 | P54: 37

Sheet 二车间待保温工程量
A1: 二车间待保温工程量
A2: 名称 | B2: 规格 | C2: 数量 | D2: 单位 | E2: 单价 | F2: 合价 | G2: 材料 | H2: 厚度 | I2: 容重 | J2: 厚度 | K2: 外皮 | N2: 外径 | O2: 外表温度 | P2: 最冷月环境温度 | Q2: 理论厚度
A3: 1507蒸汽管 | B3: DN25 | C3: 2.7 | D3: m | G3: 岩棉 | H3: 50 | I3: 60-100 | J3: 50 | K3: 0.45铝皮 | N3: 32 | O3: 180 | P3: -5 | Q3: 42
A4: 1507蒸汽管 | B4: DN15 | C4: 7 | D4: m | G4: 岩棉 | H4: 50 | I4: 60-100 | J4: 50 | K4: 0.45铝皮 | N4: 18 | O4: 180 | P4: -5 | Q4: 36
A5: 1507出料管 | B5: DN32+DN15（伴热） | C5: =3.1+54+22.4+3.6+42.3+5 -> 130.4 | D5: m | G5: 岩棉 | H5: 50 | I5: 60-100 | J5: 50 | K5: 0.45铝皮 | N5: 56 | O5: 60 | P5: -5 | Q5: 24
A6: 1507出料管法兰 | B6: DN32+DN15（伴热） | C6: 2 | D6: 对 | G6: 岩棉 | H6: 50 | I6: 60-100 | J6: 50 | K6: 0.45铝皮 | N6: 56 | O6: 60 | P6: -5 | Q6: 24
A7: 1507出料管阀门 | B7: DN32+DN15（伴热） | C7: 1 | D7: 个 | G7: 岩棉 | H7: 50 | I7: 60-100 | J7: 50 | K7: 0.45铝皮 | N7: 56 | O7: 60 | P7: -5 | Q7: 24
A8: 1507出料管弯头 | B8: DN32+DN15（伴热） | C8: 7 | D8: 个 | G8: 岩棉 | H8: 50 | I8: 60-100 | J8: 50 | K8: 0.45铝皮 | N8: 56 | O8: 60 | P8: -5 | Q8: 24
A9: 1075出料管 | B9: DN50+DN15（伴热） | C9: =1.5+37.8+5+21+1.1+7.6+3.6+42.3+6+3.1+3.5+6+6+6+6+6+6+6+22.4+37.6 -> 234.5 | D9: m | G9: 岩棉 | H9: 50 | I9: 60-100 | J9: 50 | K9: 0.45铝皮 | N9: 75 | O9: 80 | P9: -5 | Q9: 32
A10: 1075出料管法兰 | B10: DN50+DN15（伴热） | C10: 18 | D10: 对 | G10: 岩棉 | H10: 50 | I10: 60-100 | J10: 50 | K10: 0.45铝皮 | N10: 75 | O10: 80 | P10: -5 | Q10: 32
A11: 1075出料管阀门 | B11: DN50+DN15（伴热） | C11: 3 | D11: 个 | G11: 岩棉 | H11: 50 | I11: 60-100 | J11: 50 | K11: 0.45铝皮 | N11: 75 | O11: 80 | P11: -5 | Q11: 32
A12: 1075出料管弯头 | B12: DN50+DN15（伴热） | C12: 30 | D12: 个 | G12: 岩棉 | H12: 50 | I12: 60-100 | J12: 50 | K12: 0.45铝皮 | N12: 75 | O12: 80 | P12: -5 | Q12: 32
A13: 1020出料管 | B13: DN80 | C13: =44.3+22.5+3.1+14+3+7.3+7.1+0.6+17.8+1.5+1+2+23.8 -> 148 | D13: m | G13: 岩棉 | H13: 50 | I13: 60-100 | J13: 50 | K13: 0.45铝皮 | N13: 89 | O13: 50 | P13: -5 | Q13: 33
A14: 1020出料管法兰 | B14: DN80 | C14: 8 | D14: 个 | G14: 岩棉 | H14: 50 | I14: 60-100 | J14: 50 | K14: 0.45铝皮 | N14: 89 | O14: 50 | P14: -5 | Q14: 33
A15: 1020出料管阀门 | B15: DN80 | C15: 2 | D15: 个 | G15: 岩棉 | H15: 50 | I15: 60-100 | J15: 50 | K15: 0.45铝皮 | N15: 89 | O15: 50 | P15: -5 | Q15: 33
A16: 1020出料管弯头 | B16: DN80 | C16: 23 | D16: 个 | G16: 岩棉 | H16: 50 | I16: 60-100 | J16: 50 | K16: 0.45铝皮 | N16: 89 | O16: 50 | P16: -5 | Q16: 33
A17: 自来水管 | B17: DN50 | C17: =6+10+18.8+1.5+2+1.5 -> 39.8 | D17: m | G17: 岩棉 | H17: 50 | I17: 60-100 | J17: 50 | K17: 0.45铝皮 | N17: 57 | O17: 20 | P17: -5 | Q17: 15
A18: 自来水管阀门 | B18: DN50 | C18: 1 | D18: 个 | G18: 岩棉 | H18: 50 | I18: 60-100 | J18: 50 | K18: 0.45铝皮 | N18: 57 | O18: 20 | P18: -5 | Q18: 15
A19: 自来水管弯头 | B19: DN50 | C19: 9 | D19: 个 | G19: 岩棉 | H19: 50 | I19: 60-100 | J19: 50 | K19: 0.45铝皮 | N19: 57 | O19: 20 | P19: -5 | Q19: 15
A20: 自来水管法兰 | B20: DN50 | C20: 2 | D20: 对 | G20: 岩棉 | H20: 50 | I20: 60-100 | J20: 50 | K20: 0.45铝皮 | N20: 57 | O20: 20 | P20: -5 | Q20: 15
A21: 自来水管 | B21: DN25 | C21: 13.1 | D21: m | G21: 岩棉 | H21: 50 | I21: 60-100 | J21: 50 | K21: 0.45铝皮 | N21: 32 | O21: 20 | P21: -5 | Q21: 15
A22: 自来水管弯头 | B22: DN25 | C22: 4 | D22: 个 | G22: 岩棉 | H22: 50 | I22: 60-100 | J22: 50 | K22: 0.45铝皮 | N22: 32 | O22: 20 | P22: -5 | Q22: 15
A23: 脱醇去一车间 | B23: DN50 | C23: =4.5+9.9+16.5+18.7+7.7 -> 57.3 | D23: m | G23: 岩棉 | H23: 50 | I23: 60-100 | J23: 50 | K23: 0.45铝皮 | N23: 57 | O23: 115 | P23: -5 | Q23: 36
A24: 脱醇去一车间阀门 | B24: DN50 | C24: 2 | D24: 个 | G24: 岩棉 | H24: 50 | I24: 60-100 | J24: 50 | K24: 0.45铝皮 | N24: 57 | O24: 115 | P24: -5 | Q24: 36
A25: 脱醇去一车间弯头 | B25: DN50 | C25: 7 | D25: 个 | G25: 岩棉 | H25: 50 | I25: 60-100 | J25: 50 | K25: 0.45铝皮 | N25: 57 | O25: 115 | P25: -5 | Q25: 36
A26: 脱醇去一车间法兰 | B26: DN50 | C26: 5 | D26: 对 | G26: 岩棉 | H26: 50 | I26: 60-100 | J26: 50 | K26: 0.45铝皮 | N26: 57 | O26: 115 | P26: -5 | Q26: 36
A27: 脱醇出料 | B27: DN50 | C27: 3 | D27: m | G27: 岩棉 | H27: 50 | I27: 60-100 | J27: 50 | K27: 0.45铝皮 | N27: 57 | O27: 115 | P27: -5 | Q27: 36
A28: 脱醇出料阀门 | B28: DN50 | C28: 1 | D28: 个 | G28: 岩棉 | H28: 50 | I28: 60-100 | J28: 50 | K28: 0.45铝皮 | N28: 57 | O28: 115 | P28: -5 | Q28: 36
A29: P5501A泵进口阀门 | B29: DN100 | C29: 1 | D29: 个 | G29: 岩棉 | H29: 100 | I29: 60-100 | J29: 100 | K29: 0.45铝皮 | N29: 108 | O29: 250 | P29: -5 | Q29: 63
A30: P5501A泵进口法兰 | B30: DN100 | C30: 1 | D30: 对 | G30: 岩棉 | H30: 100 | I30: 60-100 | J30: 100 | K30: 0.45铝皮 | N30: 108 | O30: 250 | P30: -5 | Q30: 63
A31: P5501A泵出口阀门 | B31: DN100 | C31: 1 | D31: 个 | G31: 岩棉 | H31: 100 | I31: 60-100 | J31: 100 | K31: 0.45铝皮 | N31: 108 | O31: 250 | P31: -5 | Q31: 63
A32: P5501A泵出口阀门 | B32: DN50 | C32: 1 | D32: 个 | G32: 岩棉 | H32: 100 | I32: 60-100 | J32: 100 | K32: 0.45铝皮 | N32: 57 | O32: 250 | P32: -5 | Q32: 55
A33: P5401B进口法兰 | B33: DN150 | C33: 1 | D33: 对 | G33: 岩棉 | H33: 100 | I33: 60-100 | J33: 100 | K33: 0.45铝皮 | N33: 159 | O33: 250 | P33: -5 | Q33: 67
A34: 原料过滤机进口阀门 | B34: DN65 | C34: 3 | D34: 个 | G34: 岩棉 | H34: 50 | I34: 60-100 | J34: 50 | K34: 0.45铝皮 | N34: 76 | O34: 110 | P34: -5 | Q34: 36
A35: 原料过滤机设备（海泡石） | C35: 1 | D35: 个 | G35: 海泡石 | O35: 110 | P35: -5
A36: E8101封头 | B36: Φ800 | C36: 1 | D36: 个 | G36: 岩棉 | H36: 50 | I36: 60-100 | J36: 50 | K36: 0.45铝皮 | N36: 800 | O36: 110 | P36: -5 | Q36: 46
A37: V8104B封头（修补） | G37: 岩棉 | H37: 50 | I37: 60-100 | K37: 0.45铝皮 | O37: 115 | P37: -5
A38: T8201上下封头修补 | G38: 岩棉 | H38: 50 | I38: 60-100 | K38: 0.45铝皮 | O38: 115 | P38: -5
A39: T8201法兰 | B39: DN300 | C39: 1 | D39: 对 | G39: 岩棉 | H39: 50 | I39: 60-100 | J39: 50 | K39: 0.45铝皮 | N39: 325 | O39: 115 | P39: -5 | Q39: 46
A40: T8201人孔 | C40: 1 | D40: 个 | G40: 岩棉 | H40: 50 | I40: 60-100 | K40: 0.45铝皮 | O40: 115 | P40: -5
A41: T5401人孔 | C41: 2 | D41: 个 | G41: 岩棉 | H41: 100 | I41: 60-100 | K41: 0.45铝皮 | O41: 220 | P41: -5
A42: 进塔管 | B42: DN50 | C42: 1.5 | D42: m | G42: 岩棉 | H42: 50 | I42: 60-100 | J42: 50 | K42: 0.45铝皮 | N42: 57 | O42: 180 | P42: -5 | Q42: 47
A43: 进料阀门 | B43: DN80 | C43: 1 | D43: 个 | G43: 岩棉 | H43: 100 | I43: 60-100 | J43: 100 | K43: 0.45铝皮 | N43: 89 | O43: 180 | P43: -5 | Q43: 51

Sheet 三车间待保冷工程量
A1: 三车间待保冷工程量
A2: 名称 | B2: 规格 | C2: 数量 | D2: 单位 | E2: 单价 | F2: 合价 | G2: 材料 | H2: 厚度 | I2: 容重 | J2: 外皮 | M2: 外径 | N2: 外表温度 | O2: 最冷/热月环境温度 | P2: 理论厚度
A3: 冷冻水泵头 | C3: 3 | D3: 台 | G3: 橡塑（华美B1级） | H3: 50 | I3: 40-60 | J3: 0.45铝皮 | N3: -10 | O3: 35
A4: 2号釜冷冻水管法兰 | B4: DN32 | C4: 2 | D4: 对 | G4: 橡塑（华美B1级） | H4: 50 | I4: 40-60 | J4: 0.45铝皮 | M4: 38 | N4: -10 | O4: 35 | P4: 37
A5: P510出口法兰 | B5: DN125 | C5: 1 | D5: 对 | G5: 橡塑（华美B1级） | H5: 50 | I5: 40-60 | J5: 0.45铝皮 | M5: 133 | N5: -10 | O5: 35 | P5: 46
A6: P515出口法兰 | B6: DN125 | C6: 1 | D6: 对 | G6: 橡塑（华美B1级） | H6: 50 | I6: 40-60 | J6: 0.45铝皮 | M6: 133 | N6: -10 | O6: 35 | P6: 46
A7: P515出口大小头 | B7: DN125 | C7: 1 | D7: 个 | G7: 橡塑（华美B1级） | H7: 50 | I7: 40-60 | J7: 0.45铝皮 | M7: 133 | N7: -10 | O7: 35 | P7: 46
A8: P515出口阀门 | B8: DN50 | C8: 2 | D8: 个 | G8: 橡塑（华美B1级） | H8: 50 | I8: 40-60 | J8: 0.45铝皮 | M8: 57 | N8: -10 | O8: 35 | P8: 40
A9: P515出口阀门 | B9: DN80 | C9: 2 | D9: 个 | G9: 橡塑（华美B1级） | H9: 50 | I9: 40-60 | J9: 0.45铝皮 | M9: 89 | N9: -10 | O9: 35 | P9: 43
A10: P515出口 | B10: DN25 | C10: 1 | D10: m | G10: 橡塑（华美B1级） | H10: 50 | I10: 40-60 | J10: 0.45铝皮 | M10: 32 | N10: -10 | O10: 35 | P10: 36
A11: P515出口阀门 | B11: DN25 | C11: 3 | D11: 个 | G11: 橡塑（华美B1级） | H11: 50 | I11: 40-60 | J11: 0.45铝皮 | M11: 32 | N11: -10 | O11: 35 | P11: 36
A12: P515出口弯头 | B12: DN25 | C12: 2 | D12: 个 | G12: 橡塑（华美B1级） | H12: 50 | I12: 40-60 | J12: 0.45铝皮 | M12: 32 | N12: -10 | O12: 35 | P12: 36
A13: P515进口阀门 | B13: DN125 | C13: 1 | D13: 个 | G13: 橡塑（华美B1级） | H13: 50 | I13: 40-60 | J13: 0.45铝皮 | M13: 133 | N13: -10 | O13: 35 | P13: 46
A14: p514进口阀门 | B14: DN65 | C14: 1 | D14: 个 | G14: 橡塑（华美B1级） | H14: 50 | I14: 40-60 | J14: 0.45铝皮 | M14: 76 | N14: -10 | O14: 35 | P14: 42
A15: p514出口阀门 | B15: DN50 | C15: 2 | D15: 个 | G15: 橡塑（华美B1级） | H15: 50 | I15: 40-60 | J15: 0.45铝皮 | M15: 57 | N15: -10 | O15: 35 | P15: 40
A16: p511进口阀门 | B16: DN65 | C16: 1 | D16: 个 | G16: 橡塑（华美B1级） | H16: 50 | I16: 40-60 | J16: 0.45铝皮 | M16: 76 | N16: -10 | O16: 35 | P16: 42
A17: p511出口阀门 | B17: DN80 | C17: 5 | D17: 个 | G17: 橡塑（华美B1级） | H17: 50 | I17: 40-60 | J17: 0.45铝皮 | M17: 89 | N17: -10 | O17: 35 | P17: 43
A18: p511出口阀门 | B18: DN100 | C18: 1 | D18: 个 | G18: 橡塑（华美B1级） | H18: 50 | I18: 40-60 | J18: 0.45铝皮 | M18: 108 | N18: -10 | O18: 35 | P18: 44
A19: 吹扫罐蒸汽阀组阀门 | B19: DN32 | C19: 2 | D19: 个 | G19: 岩棉 | H19: 50 | I19: 60-100 | J19: 0.45铝皮 | M19: 38 | N19: 180 | O19: -5 | P19: 43
A20: 吹扫罐蒸汽阀组阀门 | B20: DN40 | C20: 2 | D20: 个 | G20: 岩棉 | H20: 50 | I20: 60-100 | J20: 0.45铝皮 | M20: 45 | N20: 180 | O20: -5 | P20: 45
A21: 化料池蒸汽阀组阀门 | B21: DN50 | C21: 4 | D21: 个 | G21: 岩棉 | H21: 50 | I21: 60-100 | J21: 0.45铝皮 | M21: 57 | N21: 180 | O21: -5 | P21: 47
A22: 化料池蒸汽阀组阀门 | B22: DN25 | C22: 1 | D22: 个 | G22: 岩棉 | H22: 50 | I22: 60-100 | J22: 0.45铝皮 | M22: 32 | N22: 180 | O22: -5 | P22: 42

Sheet 罐区待保温罐体工程量
A1: 罐区待保温罐体工程量
A2: 名称 | B2: 规格 | C2: 数量 | D2: 单位 | E2: 单价 | F2: 合价 | G2: 材料 | H2: 厚度 | I2: 容重 | J2: 外皮 | M2: 外径 | N2: 外表温度 | O2: 最冷月环境温度 | P2: 理论厚度
A3: 805#罐 | B3: 周长32.36m*高14m | C3: =32.36*14 -> 453.04 | D3: ㎡ | G3: 岩棉 | H3: 50 | I3: 60-100 | J3: 0.45铁皮 | M3: 10300 | N3: 20 | O3: -5 | P3: 17
A4: 805#罐封头 | C4: 1 | D4: 个 | G4: 岩棉 | H4: 50 | I4: 60-100 | J4: 0.45铁皮 | M4: 10300 | N4: 20 | O4: -5 | P4: 17
A5: 901#罐 | B5: 周长28.88m*高15.5m | C5: =28.88*15.5 -> 447.64 | D5: ㎡ | G5: 岩棉 | H5: 50 | I5: 60-100 | J5: 0.45铁皮 | M5: 9200 | N5: 20 | O5: -5 | P5: 17
A6: 901#罐封头 | C6: 1 | D6: 个 | G6: 岩棉 | H6: 50 | I6: 60-100 | J6: 0.45铁皮 | M6: 9200 | N6: 20 | O6: -5 | P6: 17
A7: 904#罐 | B7: 周长28.88m*高15.5m | C7: 447.64 | D7: ㎡ | G7: 岩棉 | H7: 50 | I7: 60-100 | J7: 0.45铁皮 | M7: 9200 | N7: 20 | O7: -5 | P7: 17
A8: 904#罐封头 | C8: 1 | D8: 个 | G8: 岩棉 | H8: 50 | I8: 60-100 | J8: 0.45铁皮 | M8: 9200 | N8: 20 | O8: -5 | P8: 17
A9: 905#罐 | B9: 周长28.88m*高15.5m | C9: 447.64 | D9: ㎡ | G9: 岩棉 | H9: 50 | I9: 60-100 | J9: 0.45铁皮 | M9: 9200 | N9: 20 | O9: -5 | P9: 17
A10: 905#罐封头 | C10: 1 | D10: 个 | G10: 岩棉 | H10: 50 | I10: 60-100 | J10: 0.45铁皮 | M10: 9200 | N10: 20 | O10: -5 | P10: 17
A11: 803#罐 | B11: 周长56.54m*高15.5m | C11: =56.54*15.5 -> 876.37 | D11: ㎡ | G11: 岩棉 | H11: 50 | I11: 60-100 | J11: 0.45铁皮 | M11: 18000 | N11: 20 | O11: -5 | P11: 16
A12: 803#罐封头 | C12: 1 | D12: 个 | G12: 岩棉 | H12: 50 | I12: 60-100 | J12: 0.45铁皮 | M12: 18000 | N12: 20 | O12: -5 | P12: 16
A13: 813#罐 | B13: 周长20.41m*高9m | C13: =20.41*9 -> 183.69 | D13: ㎡ | G13: 岩棉 | H13: 50 | I13: 60-100 | J13: 0.45铁皮 | M13: 6500 | N13: 20 | O13: -5 | P13: 17
A14: 813#罐封头 | C14: 1 | D14: 个 | G14: 岩棉 | H14: 50 | I14: 60-100 | J14: 0.45铁皮 | M14: 6500 | N14: 20 | O14: -5 | P14: 17

Sheet 罐区收发货待保温工程量
A1: 罐区收发货待保温工程量
A2: 名称 | B2: 规格 | C2: 数量 | D2: 单位 | E2: 规格 | F2: 单价 | G2: 合价 | H2: 材料 | I2: 厚度 | J2: 容重 | K2: 外皮 | N2: 外径 | O2: 外表温度 | P2: 最冷月环境温度 | Q2: 理论厚度
A3: 808、807罐通1#发货平台料管 | B3: DN65+DN15(伴热） | C3: 1 | D3: m | H3: 岩棉 | I3: 50 | J3: 60-100 | K3: 0.45铝皮 | N3: 94 | O3: 50 | P3: -5 | Q3: 33
A4: 806、807、808、903、907去1#发货平台料管 | B4: DN100+DN15(伴热） | C4: =45.7+12+10 -> 67.7 | D4: m | H4: 岩棉 | I4: 50 | J4: 60-100 | K4: 0.45铝皮 | N4: 126 | O4: 50 | P4: -5 | Q4: 34
A5: 806、807、808、903、907去1#发货平台料管法兰 | B5: DN100+DN15(伴热） | C5: 4 | D5: 对 | H5: 岩棉 | I5: 50 | J5: 60-100 | K5: 0.45铝皮 | N5: 126 | O5: 50 | P5: -5 | Q5: 34
A6: 806、807、808、903、907去1#发货平台料管弯头 | B6: DN100+DN15(伴热） | C6: 8 | D6: 个 | H6: 岩棉 | I6: 50 | J6: 60-100 | K6: 0.45铝皮 | N6: 126 | O6: 50 | P6: -5 | Q6: 34
A7: 806、807、808、903、907去1#发货平台料管三通 | B7: DN100+DN15(伴热） | C7: 1 | D7: 个 | H7: 岩棉 | I7: 50 | J7: 60-100 | K7: 0.45铝皮 | N7: 126 | O7: 50 | P7: -5 | Q7: 34
A8: 807罐料管 | B8: DN100+DN15(伴热） | C8: =8.5+3.5+2 -> 14 | D8: m | H8: 岩棉 | I8: 50 | J8: 60-100 | K8: 0.45铝皮 | N8: 126 | O8: 50 | P8: -5 | Q8: 34
A9: 807罐料管法兰 | B9: DN100+DN15(伴热） | C9: 3 | D9: 对 | H9: 岩棉 | I9: 50 | J9: 60-100 | K9: 0.45铝皮 | N9: 126 | O9: 50 | P9: -5 | Q9: 34
A10: 807罐料管弯头 | B10: DN100+DN15(伴热） | C10: 6 | D10: 个 | H10: 岩棉 | I10: 50 | J10: 60-100 | K10: 0.45铝皮 | N10: 126 | O10: 50 | P10: -5 | Q10: 34
A11: 807罐料管阀门 | B11: DN100+DN15(伴热） | C11: 2 | D11: 个 | H11: 岩棉 | I11: 50 | J11: 60-100 | K11: 0.45铝皮 | N11: 126 | O11: 50 | P11: -5 | Q11: 34
A12: 807罐料管法兰 | B12: DN80+DN15(伴热） | C12: 1 | D12: 对 | H12: 岩棉 | I12: 50 | J12: 60-100 | K12: 0.45铝皮 | N12: 107 | O12: 50 | P12: -5 | Q12: 34
A13: 807罐料管阀门 | B13: DN80+DN15(伴热） | C13: 1 | D13: 个 | H13: 岩棉 | I13: 50 | J13: 60-100 | K13: 0.45铝皮 | N13: 107 | O13: 50 | P13: -5 | Q13: 34
A14: 806罐料管 | B14: DN100+DN15(伴热） | C14: =13.5+3.5 -> 17 | D14: m | H14: 岩棉 | I14: 50 | J14: 60-100 | K14: 0.45铝皮 | N14: 126 | O14: 50 | P14: -5 | Q14: 34
A15: 806罐料管法兰 | B15: DN100+DN15(伴热） | C15: 2 | D15: 对 | H15: 岩棉 | I15: 50 | J15: 60-100 | K15: 0.45铝皮 | N15: 126 | O15: 50 | P15: -5 | Q15: 34
A16: 806罐料管弯头 | B16: DN100+DN15(伴热） | C16: 3 | D16: 个 | H16: 岩棉 | I16: 50 | J16: 60-100 | K16: 0.45铝皮 | N16: 126 | O16: 50 | P16: -5 | Q16: 34
A17: 806罐料管阀门 | B17: DN100+DN15(伴热） | C17: 2 | D17: 个 | H17: 岩棉 | I17: 50 | J17: 60-100 | K17: 0.45铝皮 | N17: 126 | O17: 50 | P17: -5 | Q17: 34
A18: 806、807、808、903、907去1#发货平台料管法兰 | B18: DN100+DN15(伴热） | C18: 5 | D18: 对 | H18: 岩棉 | I18: 50 | J18: 60-100 | K18: 0.45铝皮 | N18: 126 | O18: 50 | P18: -5 | Q18: 34
A19: 806、807、808、903、907去1#发货平台料管弯头 | B19: DN100+DN15(伴热） | C19: 7 | D19: 个 | H19: 岩棉 | I19: 50 | J19: 60-100 | K19: 0.45铝皮 | N19: 126 | O19: 50 | P19: -5 | Q19: 34
A20: 806、807、808、903、907去1#发货平台料管阀门 | B20: DN100+DN15(伴热） | C20: 1 | D20: 个 | H20: 岩棉 | I20: 50 | J20: 60-100 | K20: 0.45铝皮 | N20: 126 | O20: 50 | P20: -5 | Q20: 34
A21: 806、807、808、903、907去1#发货平台料管三通 | B21: DN100+DN15(伴热） | C21: 1 | D21: 个 | H21: 岩棉 | I21: 50 | J21: 60-100 | K21: 0.45铝皮 | N21: 126 | O21: 50 | P21: -5 | Q21: 34
A22: 907料管 | B22: DN100+DN15(伴热） | C22: 25 | D22: m | H22: 岩棉 | I22: 50 | J22: 60-100 | K22: 0.45铝皮 | N22: 126 | O22: 50 | P22: -5 | Q22: 34
A23: 907料管法兰 | B23: DN100+DN15(伴热） | C23: 4 | D23: 对 | H23: 岩棉 | I23: 50 | J23: 60-100 | K23: 0.45铝皮 | N23: 126 | O23: 50 | P23: -5 | Q23: 34
A24: 907料管弯头 | B24: DN100+DN15(伴热） | C24: 5 | D24: 个 | H24: 岩棉 | I24: 50 | J24: 60-100 | K24: 0.45铝皮 | N24: 126 | O24: 50 | P24: -5 | Q24: 34
A25: 907料管阀门 | B25: DN100+DN15(伴热） | C25: 2 | D25: 个 | H25: 岩棉 | I25: 50 | J25: 60-100 | K25: 0.45铝皮 | N25: 126 | O25: 50 | P25: -5 | Q25: 34
A26: 去V810物料管 | B26: DN50+DN15(伴热） | C26: 1 | D26: m | H26: 岩棉 | I26: 50 | J26: 60-100 | K26: 0.45铝皮 | N26: 75 | O26: 50 | P26: -5 | Q26: 32
A27: 805蒸汽进口 | B27: DN50+DN15(伴热） | C27: 8 | D27: m | H27: 岩棉 | I27: 50 | J27: 60-100 | K27: 0.45铝皮 | N27: 75 | O27: 50 | P27: -5 | Q27: 32
